bitfinex/quotes_BTCUSD_20220202
["timestamp","ask_amount","ask_price","bid_price","bid_amount"]
[1643768040502,0.06112471,38562.0,38556.0,0.02]
[1643768040703,0.00100215,38560.0,38556.0,0.02088088]
[1643768041363,0.00100215,38560.0,38557.0,0.18076794]
[1643768041749,0.00060768,38562.0,38556.0,0.02]
[1643768041952,0.00100215,38560.0,38557.0,0.18137758]
[1643768042148,0.00100215,38560.0,38558.0,0.350521]
[1643768042649,0.00100215,38560.0,38557.0,0.18137758]
[1643768042852,0.00060768,38562.0,38557.0,0.18137758]
[1643768043051,0.00100281,38560.0,38557.0,0.18137758]
[1643768043852,0.00100281,38560.0,38557.0,0.18219933]
[1643768044053,0.00060768,38562.0,38557.0,0.18219933]
[1643768044254,0.00100281,38560.0,38556.0,0.02088088]
[1643768044556,0.00100281,38560.0,38557.0,0.18300005]
[1643768044805,0.00100281,38560.0,38556.0,0.02088088]
[1643768045000,0.00100281,38560.0,38557.0,0.18498804]
[1643768045300,0.00060768,38562.0,38557.0,0.18498804]
[1643768045500,0.00100281,38560.0,38557.0,0.18498804]
[1643768046099,0.00100281,38560.0,38558.0,0.350521]
[1643768046501,0.00060768,38562.0,38559.0,0.18095615]
[1643768046800,0.00100269,38561.0,38559.0,0.18095615]
[1643768047000,0.00100269,38561.0,38556.0,0.02088088]
[1643768047001,0.00100269,38561.0,38557.0,0.19524046]
[1643768047202,0.00100269,38561.0,38558.0,0.350521]
[1643768047799,0.00060768,38562.0,38558.0,0.350521]
[1643768048001,0.00100269,38561.0,38557.0,0.19524046]
[1643768048399,0.00100269,38561.0,38556.0,0.02088088]
[1643768048666,0.00100269,38561.0,38557.0,0.01938077]
[1643768048866,0.00060768,38562.0,38557.0,0.01938077]
[1643768049076,0.0010027,38560.0,38556.0,0.02088088]
[1643768049266,0.0010027,38560.0,38557.0,0.350521]
[1643768049468,0.0010027,38560.0,38556.0,0.02088088]
[1643768050066,0.02060768,38562.0,38557.0,0.350521]
[1643768050268,0.00100272,38560.0,38556.0,0.02088088]
[1643768050967,0.00100272,38560.0,38557.0,0.350521]
[1643768051370,0.00060768,38562.0,38557.0,0.53146366]
[1643768051569,0.00100272,38560.0,38557.0,0.18094266]
[1643768052068,0.00100272,38560.0,38558.0,0.350521]
[1643768052302,0.00089976,38560.0,38558.0,0.350521]
[1643768052502,0.00060768,38562.0,38558.0,0.350521]
[1643768052698,0.00060768,38562.0,38556.0,0.0848372]
[1643768053902,0.00056259,38561.0,38556.0,0.0848372]
[1643768054103,0.00056259,38561.0,38557.0,0.53156801]
[1643768054904,0.22676056,38562.0,38556.0,0.0412594]
[1643768055106,0.00110205,38561.0,38556.0,0.04233898]
[1643768055303,0.04559284,38561.0,38556.0,0.04233898]
[1643768055505,0.03410987,38561.0,38556.0,0.04233898]
[1643768055904,0.00110205,38561.0,38556.0,0.04233898]
[1643768056146,0.03518471,38561.0,38556.0,0.0412594]
[1643768056349,0.00110205,38561.0,38556.0,0.04233898]
[1643768056547,0.0366146,38561.0,38556.0,0.04233898]
[1643768056747,0.00110205,38561.0,38556.0,0.04233898]
[1643768057349,0.00060768,38562.0,38556.0,0.06110587]
[1643768057550,0.00109638,38561.0,38556.0,0.06218545]
[1643768057751,0.00109638,38561.0,38557.0,0.350521]
[1643768058449,0.00060768,38562.0,38557.0,0.350521]
[1643768058649,0.00109638,38561.0,38557.0,0.350521]
[1643768059456,0.00109638,38561.0,38558.0,0.13796569]
[1643768059650,0.00060768,38562.0,38559.0,0.350521]
[1643768059908,0.00109638,38561.0,38559.0,0.402521]
[1643768060107,0.00109638,38561.0,38560.0,0.64015256]
[1643768060311,0.00109638,38561.0,38560.0,0.820521]
[1643768060807,0.00060768,38562.0,38560.0,0.820521]
[1643768061008,0.00060768,38562.0,38561.0,0.51670159]
[1643768061208,0.00170499,38562.0,38561.0,0.350521]
[1643768061410,0.00170499,38562.0,38560.0,0.58347534]
[1643768062011,0.00060768,38562.0,38560.0,0.58347534]
[1643768062411,0.00060768,38562.0,38561.0,0.53677353]
[1643768062611,0.00060768,38562.0,38561.0,0.88729453]
[1643768064148,0.00060768,38562.0,38561.0,0.350521]
[1643768064748,0.00060768,38562.0,38561.0,0.52173999]
[1643768065151,0.0007562,38564.0,38563.0,0.00129691]
[1643768065354,0.0007562,38564.0,38563.0,0.57806043]
[1643768065548,0.0007562,38564.0,38563.0,0.62806043]
[1643768066351,0.0007562,38564.0,38563.0,0.64579679]
[1643768068314,0.0007562,38564.0,38563.0,0.59579679]
[1643768068813,0.0007562,38564.0,38563.0,0.64579679]
[1643768071155,0.0007562,38564.0,38563.0,0.72853529]
[1643768071356,0.0007562,38564.0,38563.0,0.67853529]
[1643768071557,0.0007562,38564.0,38563.0,0.66653962]
[1643768071958,0.0007562,38564.0,38563.0,0.58380112]
[1643768083399,0.0007562,38564.0,38563.0,0.63580112]
[1643768084803,0.00122244,38565.0,38564.0,0.47]
[1643768084804,0.0015124,38565.0,38564.0,0.47]
[1643768085004,0.002,38572.0,38564.0,1.1342634]
[1643768085203,0.002,38572.0,38565.0,0.820521]
[1643768085403,0.002,38572.0,38566.0,0.32654968]
[1643768085603,0.002,38572.0,38571.0,0.22198549]
[1643768085803,0.002,38572.0,38571.0,0.402521]
[1643768088164,0.002,38572.0,38571.0,0.422521]
[1643768091407,0.002,38572.0,38571.0,0.370521]
[1643768091802,0.002,38572.0,38571.0,0.02]
[1643768095055,0.002,38572.0,38571.0,0.370521]
[1643768097311,0.00422538,38573.0,38571.0,0.370521]
[1643768097312,0.00122538,38573.0,38571.0,0.435329]
[1643768097504,0.00122538,38573.0,38572.0,0.474806]
[1643768097703,0.00122538,38573.0,38572.0,0.825327]
[1643768098103,0.001,38576.0,38574.0,0.365547]
[1643768098105,0.00022538,38576.0,38574.0,0.365547]
[1643768098303,0.00022538,38576.0,38575.0,0.350521]
[1643768098505,0.00022538,38576.0,38574.0,0.415326]
[1643768098704,0.00022538,38576.0,38574.0,0.54493577]
[1643768099603,0.00022538,38576.0,38575.0,0.20866888]
[1643768099804,0.00022538,38576.0,38575.0,0.55918988]
[1643768100604,0.00022538,38576.0,38575.0,0.350521]
[1643768102252,0.11355876,38585.0,38578.0,0.129598]
[1643768102452,0.11355876,38585.0,38579.0,0.5986717]
[1643768102453,0.00490652,38585.0,38579.0,0.5986717]
[1643768102851,0.00133,38587.0,38579.0,0.402521]
[1643768103250,0.00133,38587.0,38581.0,0.34799234]
[1643768103451,0.00133,38587.0,38582.0,0.480098]
[1643768103951,0.00133,38587.0,38583.0,0.02]
[1643768104155,0.00133,38587.0,38584.0,0.350521]
[1643768104651,0.00133,38587.0,38584.0,0.53130408]
[1643768105314,0.00133,38587.0,38585.0,0.064789]
[1643768105510,0.00133,38587.0,38585.0,0.41531]
[1643768105911,0.00133,38587.0,38585.0,0.350521]
[1643768106111,0.00133,38587.0,38584.0,0.350521]
[1643768106712,0.00255825,38587.0,38584.0,0.350521]
[1643768107013,0.00255825,38587.0,38584.0,0.34265413]
[1643768107811,0.00133,38587.0,38584.0,0.34265413]
[1643768108010,0.00255825,38587.0,38584.0,0.34265413]
[1643768108852,0.00255825,38587.0,38583.0,0.149581]
[1643768108853,0.00133,38587.0,38583.0,0.149581]
[1643768109053,0.00255825,38587.0,38584.0,0.349492]
[1643768109454,0.00255825,38587.0,38585.0,0.03971432]
[1643768109655,0.00255825,38587.0,38585.0,0.38920632]
[1643768110054,0.00133,38587.0,38585.0,0.38920632]
[1643768110253,0.00255825,38587.0,38585.0,0.38920632]
[1643768111254,0.00133,38587.0,38585.0,0.38920632]
[1643768111454,0.00255825,38587.0,38585.0,0.38920632]
[1643768111857,0.00255825,38587.0,38585.0,0.03971432]
[1643768112607,0.00133,38587.0,38585.0,0.03971432]
[1643768112812,0.00255825,38587.0,38585.0,0.03971432]
[1643768113708,0.00133,38587.0,38585.0,0.03971432]
[1643768113907,0.00255825,38587.0,38585.0,0.03971432]
[1643768114907,0.00133,38587.0,38585.0,0.03971432]
[1643768115108,0.00255825,38587.0,38585.0,0.03971432]
[1643768116157,0.00133,38587.0,38585.0,0.03971432]
[1643768116358,0.00255825,38587.0,38585.0,0.03971432]
[1643768117364,0.00133,38587.0,38585.0,0.03971432]
[1643768117560,0.00255825,38587.0,38585.0,0.03971432]
[1643768118159,0.00255825,38587.0,38585.0,0.38920632]
[1643768118559,0.00133,38587.0,38585.0,0.38920632]
[1643768118762,0.00255825,38587.0,38585.0,0.38920632]
[1643768119809,0.00133,38587.0,38585.0,0.38920632]
[1643768120008,0.00255825,38587.0,38585.0,0.03971432]
[1643768121006,0.00133,38587.0,38585.0,0.03971432]
[1643768121206,0.00255825,38587.0,38585.0,0.03971432]
[1643768123308,0.00133,38587.0,38585.0,0.03971432]
[1643768123550,0.00255825,38587.0,38585.0,0.03971432]
[1643768124554,0.00133,38587.0,38585.0,0.03971432]
[1643768124754,0.00122825,38587.0,38585.0,0.03971432]
[1643768124955,0.00122825,38587.0,38585.0,0.01985716]
[1643768125158,0.00122825,38587.0,38583.0,0.02]
[1643768125353,0.00122825,38587.0,38586.0,0.01985716]
[1643768125756,0.00033,38588.0,38586.0,0.01985716]
[1643768125954,0.00155823,38588.0,38586.0,0.01985716]
[1643768126857,0.00033,38588.0,38586.0,0.01985716]
[1643768127310,0.08125495,38588.0,38586.0,0.01985716]
[1643768127710,0.308029,38587.0,38586.0,0.01985716]
[1643768127905,0.3,38587.0,38586.0,0.01985716]
[1643768129108,0.00155823,38588.0,38586.0,0.01985716]
[1643768129308,0.00033,38588.0,38586.0,0.01985716]
[1643768130309,0.00033,38588.0,38585.0,0.01985716]
[1643768130310,0.07527144,38588.0,38585.0,0.01985716]
[1643768130509,0.23001252,38584.0,38583.0,0.02]
[1643768131155,0.23001252,38584.0,38583.0,0.04007452]
[1643768131455,0.23001252,38584.0,38583.0,0.02]
[1643768135706,0.23001252,38584.0,38583.0,0.05971432]
[1643768139754,0.00122827,38585.0,38583.0,0.05971432]
[1643768140153,0.00033,38588.0,38583.0,0.05971432]
[1643768140354,0.00122827,38586.0,38583.0,0.05971432]
[1643768140758,0.00122827,38586.0,38583.0,0.02]
[1643768140954,0.00122827,38586.0,38584.0,0.01985716]
[1643768141257,0.00122827,38586.0,38584.0,0.03971432]
[1643768141457,0.00033,38588.0,38584.0,0.03971432]
[1643768141755,0.00122825,38587.0,38584.0,0.03971432]
[1643768142611,0.00033,38588.0,38584.0,0.03971432]
[1643768142814,0.00122825,38587.0,38584.0,0.03971432]
[1643768143713,0.00033,38588.0,38584.0,0.03971432]
[1643768143915,0.00122825,38587.0,38584.0,0.03971432]
[1643768144915,0.00033,38588.0,38584.0,0.03971432]
[1643768145115,0.00122825,38587.0,38584.0,0.03971432]
[1643768146160,0.04957567,38588.0,38584.0,0.01985716]
[1643768146359,0.00122825,38587.0,38583.0,0.02]
[1643768146560,0.00122825,38587.0,38586.0,0.03971432]
[1643768147462,0.04957567,38588.0,38586.0,0.03971432]
[1643768147661,0.0508039,38588.0,38586.0,0.03971432]
[1643768148362,0.00155823,38588.0,38586.0,0.03971432]
[1643768148563,0.00033,38588.0,38586.0,0.03971432]
[1643768151506,0.00033,38588.0,38586.0,0.01985716]
[1643768151705,0.00033,38588.0,38587.0,0.01985716]
[1643768151905,0.00033,38588.0,38587.0,0.03971432]
[1643768152108,0.22033,38588.0,38587.0,0.03971432]
[1643768161464,0.228359,38588.0,38587.0,0.03971432]
[1643768161863,0.22033,38588.0,38587.0,0.03971432]
[1643768163866,0.40594684,38588.0,38587.0,0.03971432]
[1643768164073,0.65594684,38588.0,38587.0,0.03961844]
[1643768164367,0.9844709,38588.0,38587.0,0.01985716]
[1643768164568,0.9844709,38588.0,38587.0,0.03961844]
[1643768165016,0.80688306,38588.0,38587.0,0.03961844]
[1643768166016,0.55688306,38588.0,38587.0,0.03961844]
[1643768166216,0.60888306,38588.0,38587.0,0.03961844]
[1643768167119,0.280359,38588.0,38587.0,0.03961844]
[1643768167317,1.659359,38588.0,38587.0,0.03961844]
[1643768167519,1.98788306,38588.0,38587.0,0.03961844]
[1643768168859,1.659359,38588.0,38587.0,0.03961844]
[1643768169261,0.280359,38588.0,38587.0,0.03961844]
[1643768169458,0.060359,38588.0,38587.0,0.03961844]
[1643768169660,0.00033,38588.0,38587.0,0.03961844]
[1643768170862,0.308359,38588.0,38587.0,0.03961844]
[1643768172812,0.00033,38588.0,38587.0,0.03961844]
[1643768184464,0.00033,38588.0,38587.0,0.38911044]
[1643768184668,0.00033,38588.0,38587.0,0.03961844]
[1643768198668,0.428359,38588.0,38587.0,0.03961844]
[1643768201071,0.62063101,38588.0,38587.0,0.03961844]
[1643768202914,0.428359,38588.0,38587.0,0.03961844]
[1643768203111,0.42033,38588.0,38587.0,0.03961844]
[1643768203314,0.428359,38588.0,38587.0,0.03961844]
[1643768203512,0.42033,38588.0,38587.0,0.03961844]
[1643768204011,0.428359,38588.0,38587.0,0.03961844]
[1643768205111,0.42033,38588.0,38587.0,0.03961844]
[1643768206167,0.00827166,38588.0,38587.0,0.03961844]
[1643768206464,0.34827166,38588.0,38587.0,0.03961844]
[1643768211921,0.00024266,38588.0,38587.0,0.03961844]
[1643768216469,0.21024266,38588.0,38587.0,0.03961844]
[1643768217326,0.00024266,38588.0,38587.0,0.03961844]
[1643768219121,0.17904648,38588.0,38587.0,0.03961844]
[1643768219519,0.18707548,38588.0,38587.0,0.03961844]
[1643768222367,0.43707548,38588.0,38587.0,0.03961844]
[1643768228862,0.32,38587.0,38583.0,0.00651055]
[1643768229064,0.1852891,38586.0,38583.0,0.00651055]
[1643768229261,0.008029,38586.0,38583.0,0.00651055]
[1643768230062,0.008029,38586.0,38584.0,0.01348945]
[1643768230264,0.08906083,38585.0,38584.0,0.01348945]
[1643768230763,0.00110344,38586.0,38584.0,0.01348945]
[1643768231366,0.00024266,38588.0,38584.0,0.01348945]
[1643768231566,0.00110344,38587.0,38584.0,0.01348945]
[1643768232413,0.06590249,38587.0,38584.0,0.01348945]
[1643768232613,0.06479905,38587.0,38584.0,0.01348945]
[1643768232815,0.06590249,38587.0,38584.0,0.01348945]
[1643768233813,0.06479905,38587.0,38584.0,0.01348945]
[1643768234017,0.27041963,38591.0,38584.0,0.01348945]
[1643768234018,0.00110313,38591.0,38586.0,0.47]
[1643768234219,0.00110313,38591.0,38587.0,0.6952492]
[1643768234220,0.01348945,38590.0,38587.0,0.6952492]
[1643768234415,0.002,38595.0,38587.0,0.6952492]
[1643768234416,0.32962545,38600.0,38589.0,0.62]
[1643768234614,0.001,38600.0,38590.0,0.5952492]
[1643768234813,0.001,38600.0,38590.0,0.7452492]
[1643768235013,0.001,38600.0,38598.0,0.30501993]
[1643768235213,0.001,38603.0,38598.0,0.30501993]
[1643768235214,0.001,38603.0,38599.0,0.47]
[1643768235416,0.001,38603.0,38601.0,0.444755]
[1643768235617,0.001,38603.0,38602.0,0.349492]
[1643768236465,0.001,38603.0,38602.0,0.36298145]
[1643768236667,0.001,38606.0,38602.0,0.55673865]
[1643768236869,0.002,38611.0,38603.0,0.534756]
[1643768236870,0.006,38609.0,38603.0,0.534756]
[1643768237064,0.006,38609.0,38604.0,0.401492]
[1643768237265,0.006,38609.0,38606.0,0.30375875]
[1643768237566,0.002,38615.0,38610.0,0.31640592]
[1643768237767,0.002,38615.0,38611.0,0.5432492]
[1643768237768,0.001,38615.0,38611.0,0.5432492]
[1643768237968,0.001,38615.0,38612.0,0.052]
[1643768238171,0.001,38615.0,38613.0,0.349492]
[1643768238368,0.001,38615.0,38614.0,0.522]
[1643768238567,0.001,38615.0,38614.0,1.26262325]
[1643768239372,0.03107114,38618.0,38615.0,0.47]
[1643768239568,0.03107114,38618.0,38616.0,0.349492]
[1643768239822,0.03107114,38618.0,38616.0,0.499492]
[1643768240123,0.03107114,38618.0,38614.0,0.01348945]
[1643768240816,0.26750552,38618.0,38614.0,0.01348945]
[1643768241018,0.03107114,38618.0,38614.0,0.01348945]
[1643768241817,0.03107114,38618.0,38615.0,0.349492]
[1643768242417,0.03231332,38618.0,38615.0,0.349492]
[1643768243019,0.03231332,38618.0,38615.0,0.06474]
[1643768243419,0.03107114,38618.0,38615.0,0.06474]
[1643768243665,0.03231332,38618.0,38615.0,0.06474]
[1643768244365,0.03231332,38618.0,38614.0,0.01348945]
[1643768244568,0.03107114,38618.0,38614.0,0.01348945]
[1643768245065,0.03231333,38618.0,38614.0,0.01348945]
[1643768245468,0.03231333,38618.0,38615.0,0.349492]
[1643768245668,0.03231333,38618.0,38616.0,2.33031649]
[1643768245867,0.03107114,38618.0,38617.0,0.349492]
[1643768246169,0.03231332,38618.0,38614.0,0.01348945]
[1643768246367,0.18026271,38617.0,38614.0,0.01348945]
[1643768246566,0.03231332,38618.0,38614.0,0.01348945]
[1643768246967,0.03107114,38618.0,38614.0,0.01348945]
[1643768247171,0.20876766,38618.0,38614.0,0.01348945]
[1643768247415,0.03231333,38618.0,38614.0,0.01348945]
[1643768248316,0.03107114,38618.0,38614.0,0.01348945]
[1643768248616,0.03231333,38618.0,38614.0,0.01348945]
[1643768249018,0.26176805,38618.0,38614.0,0.01348945]
[1643768249219,0.03231333,38618.0,38614.0,0.01348945]
[1643768249419,0.03107114,38618.0,38614.0,0.01348945]
[1643768249620,0.03231333,38618.0,38614.0,0.01348945]
[1643768250621,0.03107114,38618.0,38614.0,0.01348945]
[1643768250920,0.34260479,38618.0,38614.0,0.01348945]
[1643768251366,0.03231333,38618.0,38614.0,0.01348945]
[1643768251567,0.03231333,38618.0,38615.0,0.349492]
[1643768251766,0.03231333,38618.0,38616.0,0.19737009]
[1643768251767,0.03107114,38618.0,38616.0,0.19737009]
[1643768251967,0.03107114,38618.0,38617.0,0.349492]
[1643768252168,0.03231332,38618.0,38617.0,0.349492]
[1643768253169,0.03107114,38618.0,38617.0,0.349492]
[1643768253972,0.03107114,38618.0,38617.0,0.53496501]
[1643768255618,0.03107114,38618.0,38617.0,0.349492]
[1643768255818,0.03107114,38618.0,38616.0,0.349492]
[1643768256219,0.23103371,38616.0,38614.0,0.01348945]
[1643768259264,0.0012422,38617.0,38614.0,0.01348945]
[1643768260267,0.25835325,38616.0,38614.0,0.01348945]
[1643768261066,0.00124219,38617.0,38614.0,0.01348945]
[1643768261467,0.03107114,38618.0,38614.0,0.01348945]
[1643768261767,0.00124219,38617.0,38614.0,0.01348945]
[1643768262624,0.03107114,38618.0,38614.0,0.01348945]
[1643768263022,0.00124219,38617.0,38614.0,0.07823045]
[1643768263224,0.00124219,38617.0,38615.0,0.349492]
[1643768263424,0.00124219,38617.0,38614.0,0.07823045]
[1643768263823,0.03107114,38618.0,38614.0,0.07823045]
[1643768264024,0.00124219,38617.0,38614.0,0.07823045]
[1643768264626,0.00124219,38617.0,38614.0,0.01348945]
[1643768265024,0.03107114,38618.0,38614.0,0.01348945]
[1643768265225,0.00124219,38617.0,38614.0,0.01348945]
[1643768266365,0.03107114,38618.0,38615.0,0.349492]
[1643768266568,0.03107114,38618.0,38616.0,0.17787825]
[1643768266569,0.00124219,38617.0,38616.0,0.17787825]
[1643768266768,0.00124219,38617.0,38616.0,0.52737025]
[1643768267571,0.03107114,38618.0,38616.0,0.52737025]
[1643768267767,0.03231332,38618.0,38617.0,0.55210045]
[1643768267970,0.03231332,38618.0,38617.0,0.65405862]
[1643768268267,0.03231332,38618.0,38617.0,0.45145017]
[1643768268467,0.03231332,38618.0,38617.0,0.62949344]
[1643768268669,0.03107114,38618.0,38617.0,0.62949344]
[1643768268971,0.03107114,38618.0,38617.0,0.45145017]
[1643768269173,0.0017189,38618.0,38617.0,1.05521939]
[1643768269371,0.00124216,38619.0,38618.0,0.47]
[1643768269671,0.00124216,38619.0,38618.0,0.871492]
[1643768269931,0.002,38620.0,38618.0,0.871492]
[1643768270134,0.00324215,38620.0,38619.0,0.349492]
[1643768270334,0.00324215,38620.0,38619.0,0.401492]
[1643768271132,0.002,38620.0,38619.0,0.401492]
[1643768273434,0.002,38620.0,38619.0,0.349492]
[1643768273668,0.002,38620.0,38618.0,0.349492]
[1643768274469,0.002,38620.0,38619.0,0.18135049]
[1643768274669,0.002,38620.0,38619.0,0.53084249]
[1643768274870,0.002,38620.0,38619.0,0.349492]
[1643768275071,0.002,38620.0,38616.0,0.129445]
[1643768275273,0.002,38620.0,38617.0,0.52638387]
[1643768276073,0.00324215,38620.0,38618.0,0.07667524]
[1643768276276,0.00324215,38620.0,38619.0,0.349492]
[1643768276574,0.00324215,38620.0,38619.0,3.15911716]
[1643768276975,0.00324215,38620.0,38619.0,0.53691426]
[1643768277174,0.002,38620.0,38619.0,0.53691426]
[1643768277419,0.002,38620.0,38619.0,0.349492]
[1643768278619,0.001,38620.0,38619.0,0.349492]
[1643768280423,0.001,38620.0,38618.0,0.349492]
[1643768280925,0.001,38620.0,38617.0,0.349492]
[1643768281570,0.001,38620.0,38617.0,0.478954]
[1643768281970,0.001,38620.0,38618.0,0.17867448]
[1643768282172,0.00224215,38620.0,38619.0,0.349492]
[1643768282572,0.00224215,38620.0,38616.0,0.349492]
[1643768283070,0.001,38620.0,38616.0,0.349492]
[1643768283271,0.00224216,38620.0,38616.0,0.349492]
[1643768284273,0.001,38620.0,38616.0,0.349492]
[1643768284571,0.00224216,38620.0,38616.0,0.349492]
[1643768285019,0.00224216,38620.0,38616.0,0.58557677]
[1643768285219,0.00224216,38620.0,38618.0,0.064726]
[1643768285419,0.001,38620.0,38619.0,0.349492]
[1643768286822,0.001,38620.0,38618.0,0.05]
[1643768287023,0.001,38620.0,38619.0,0.349492]
[1643768287221,0.001,38620.0,38618.0,0.05]
[1643768287425,0.001,38620.0,38617.0,0.05]
[1643768287822,0.001,38620.0,38618.0,0.349492]
[1643768288221,0.00224215,38620.0,38617.0,0.349492]
[1643768288423,0.00224215,38620.0,38617.0,0.414222]
[1643768288673,0.00224215,38620.0,38619.0,1.71860424]
[1643768288871,0.00224215,38620.0,38619.0,0.349492]
[1643768289070,0.001,38620.0,38618.0,0.349492]
[1643768290370,0.001,38620.0,38619.0,0.18631375]
[1643768290572,0.001,38620.0,38619.0,0.53580575]
[1643768292621,0.001,38620.0,38619.0,0.51519582]
[1643768292824,0.001,38620.0,38619.0,0.349492]
[1643768293022,0.001,38620.0,38618.0,0.349492]
[1643768293723,0.001,38620.0,38619.0,0.17687049]
[1643768293924,0.001,38620.0,38619.0,0.349492]
[1643768294123,0.001,38620.0,38618.0,0.349492]
[1643768295222,0.001,38620.0,38618.0,0.414221]
[1643768295623,0.00024214,38626.0,38619.0,0.38]
[1643768295823,0.00024214,38626.0,38620.0,0.349492]
[1643768296070,0.00024214,38626.0,38622.0,0.00651055]
[1643768297071,0.00024214,38626.0,38623.0,0.01348945]
[1643768297671,0.00148575,38626.0,38623.0,0.01348945]
[1643768298672,0.00024214,38626.0,38623.0,0.01348945]
[1643768298872,0.00148575,38626.0,38623.0,0.01348945]
[1643768299924,0.00024214,38626.0,38623.0,0.01348945]
[1643768300226,0.299675,38626.0,38623.0,0.01348945]
[1643768301124,0.002,38627.0,38623.0,0.01348945]
[1643768302425,0.24708342,38627.0,38623.0,0.01348945]
[1643768306676,0.002,38627.0,38623.0,0.01348945]
[1643768307175,0.002,38627.0,38624.0,0.349492]
[1643768307424,0.002,38627.0,38623.0,0.01348945]
[1643768307624,0.27417197,38625.0,38623.0,0.01348945]
[1643768310726,0.002,38627.0,38623.0,0.01348945]
[1643768312574,0.20951103,38624.0,38623.0,0.01348945]
[1643768312975,0.002,38627.0,38623.0,0.01348945]
[1643768313976,0.20733198,38626.0,38623.0,0.01348945]
[1643768318224,0.002,38627.0,38623.0,0.01348945]
[1643768319270,0.22875317,38627.0,38623.0,0.01348945]
[1643768319471,0.002,38627.0,38623.0,0.01348945]
[1643768319871,0.002,38627.0,38624.0,0.349492]
[1643768320471,0.002,38627.0,38623.0,0.01348945]
[1643768322074,0.002,38627.0,38624.0,0.349492]
[1643768323224,0.002,38627.0,38624.0,0.414219]
[1643768323424,0.002,38627.0,38624.0,0.064727]
[1643768323624,0.002,38627.0,38625.0,0.349492]
[1643768323824,0.002,38627.0,38624.0,0.064727]
[1643768326271,0.002,38627.0,38623.0,0.01348945]
[1643768327471,0.002,38627.0,38623.0,0.07821945]
[1643768336074,0.002,38627.0,38623.0,0.01348945]
[1643768337074,0.22621177,38626.0,38623.0,0.01348945]
[1643768339630,0.002,38627.0,38623.0,0.01348945]
[1643768341075,0.002,38627.0,38623.0,0.07822045]
[1643768341975,0.002,38627.0,38623.0,0.01348945]
[1643768341976,0.21178596,38626.0,38623.0,0.01348945]
[1643768342278,0.72347818,38625.0,38619.0,0.00117]
[1643768342477,0.32862545,38624.0,38619.0,0.00117]
[1643768342674,0.25347818,38623.0,38619.0,0.00117]
[1643768342875,0.48482099,38623.0,38619.0,0.00117]
[1643768343075,0.14848237,38622.0,38611.0,0.05]
[1643768343274,0.24829859,38617.0,38611.0,0.05]
[1643768343474,0.24829859,38617.0,38609.0,0.1219]
[1643768344275,0.18491999,38616.0,38612.0,0.02]
[1643768344477,0.44133177,38616.0,38612.0,0.02]
[1643768345722,0.44133177,38616.0,38612.0,0.02117022]
[1643768345926,0.1769761,38616.0,38612.0,0.02117022]
[1643768346723,0.1769761,38616.0,38612.0,0.02]
[1643768346923,0.1769761,38616.0,38612.0,0.02058637]
[1643768348123,0.1769761,38616.0,38612.0,0.02117022]
[1643768348322,0.2769761,38616.0,38612.0,0.02117022]
[1643768349171,0.2769761,38616.0,38612.0,0.02]
[1643768349372,0.21278762,38615.0,38612.0,0.02117022]
[1643768350274,0.17703016,38614.0,38612.0,0.02117022]
[1643768350474,0.530029,38613.0,38612.0,0.02]
[1643768350674,0.74532731,38613.0,38612.0,0.02117023]
[1643768351674,0.74532731,38613.0,38612.0,0.02]
[1643768353127,1.0696323,38613.0,38612.0,0.015]
[1643768353327,1.1196323,38613.0,38612.0,0.015]
[1643768354526,0.79532731,38613.0,38612.0,0.015]
[1643768354727,0.11589782,38613.0,38612.0,0.015]
[1643768354927,0.40589782,38613.0,38612.0,0.015]
[1643768355329,0.06589782,38613.0,38612.0,0.015]
[1643768355928,0.05786882,38613.0,38612.0,0.015]
[1643768356375,0.06589782,38613.0,38612.0,0.015]
[1643768356778,0.01389782,38613.0,38612.0,0.015]
[1643768360629,0.00586882,38613.0,38612.0,0.015]
[1643768360826,0.1,38616.0,38612.0,0.015]
[1643768361428,0.1,38616.0,38612.0,0.01595283]
[1643768362327,0.1,38616.0,38612.0,0.015]
[1643768362529,0.1,38616.0,38612.0,0.01595283]
[1643768363129,0.1,38616.0,38613.0,0.064745]
[1643768363776,0.29575018,38618.0,38613.0,0.06570082]
[1643768363977,0.18883713,38620.0,38613.0,0.06570082]
[1643768364778,0.18883713,38620.0,38612.0,0.015]
[1643768364980,0.06475137,38619.0,38615.0,0.00095577]
[1643768365181,0.008029,38618.0,38615.0,0.00095577]
[1643768365378,0.18722668,38618.0,38615.0,0.00095577]
[1643768365579,0.18309265,38618.0,38615.0,0.00095577]
[1643768365778,0.18327934,38618.0,38615.0,0.00095577]
[1643768365979,0.4446264,38618.0,38612.0,0.015]
[1643768366179,0.25763622,38618.0,38615.0,0.00095577]
[1643768366378,0.008029,38617.0,38615.0,0.00095577]
[1643768367184,0.17557709,38618.0,38612.0,0.015]
[1643768367431,0.1,38617.0,38614.0,0.00095511]
[1643768368432,0.1,38617.0,38612.0,0.015]
[1643768368632,0.1,38617.0,38614.0,0.00095512]
[1643768369533,0.1,38617.0,38613.0,0.064745]
[1643768369736,0.1,38617.0,38614.0,0.00095512]
[1643768370732,0.1,38617.0,38613.0,0.064745]
[1643768370933,0.1,38617.0,38614.0,0.00095527]
[1643768371981,0.1,38617.0,38612.0,0.015]
[1643768372180,0.1,38617.0,38614.0,0.00095527]
[1643768374381,0.1,38617.0,38613.0,0.06070027]
[1643768376330,0.1,38617.0,38612.0,0.015]
[1643768377631,0.17668501,38616.0,38612.0,0.015]
[1643768378029,0.24772676,38613.0,38612.0,0.015]
[1643768378229,0.24772676,38613.0,38612.0,0.01616544]
[1643768379180,0.24772676,38613.0,38612.0,0.015]
[1643768379480,0.42323599,38613.0,38612.0,0.015]
[1643768381282,0.17550923,38613.0,38612.0,0.015]
[1643768381483,0.17401191,38613.0,38612.0,0.015]
[1643768381981,0.26592092,38614.0,38612.0,0.015]
[1643768382182,0.51813106,38614.0,38612.0,0.015]
[1643768383029,0.17997027,38613.0,38612.0,0.015]
[1643768384233,0.51813106,38614.0,38612.0,0.015]
[1643768384434,0.26592092,38614.0,38612.0,0.015]
[1643768384633,0.16475391,38617.0,38612.0,0.015]
[1643768384933,0.1,38617.0,38612.0,0.015]
[1643768385336,0.17961362,38616.0,38612.0,0.01616544]
[1643768386377,0.17961362,38616.0,38612.0,0.015]